bitfinex/quotes_ETHUSD_20250115
["timestamp","ask_amount","ask_price","bid_price","bid_amount"]
[1736948224763,3.0,3269.0,3266.4,1.5121]
[1736948224923,3.05949,3268.6,3267.0,3.06089]
[1736948225102,6.4425813,3268.8,3266.4,1.5121]
[1736948225301,3.05917,3268.9,3268.6,0.055]
[1736948225511,3.05923,3268.8,3268.6,0.055]
[1736948225847,3.0584,3269.7,3268.6,0.055]
[1736948226015,3.0,3268.8,3268.6,0.055]
[1736948226361,3.0,3268.8,3265.3,0.25]
[1736948226362,3.05978,3268.2,3265.7,1.6543]
[1736948226711,3.0,3267.9,3265.7,1.6543]
[1736948226871,3.0,3267.9,3266.3,3.06152]
[1736948227070,3.0,3267.9,3265.7,1.6543]
[1736948227071,1.6236,3268.1,3266.8,3.06101]
[1736948227226,1.6236,3268.1,3266.5,3.06134]
[1736948227569,1.6236,3268.1,3266.7,3.06117]
[1736948227752,1.6236,3268.1,3268.0,3.05997]
[1736948227960,1.6236,3269.5,3267.6,3.06035]
[1736948228162,1.6236,3269.5,3268.8,3.05922]
[1736948228458,1.6236,3269.5,3267.9,3.06006]
[1736948228634,1.6236,3269.5,3269.4,3.05866]
[1736948228820,0.5,3271.6,3267.8,0.55]
[1736948228821,0.15250433,3271.2,3268.5,1.6543]
[1736948229022,1.6236,3270.8,3269.5,3.05852]
[1736948229312,3.05755,3270.6,3269.2,3.0588]
[1736948229622,3.0,3270.3,3267.9,3.06006]
[1736948229826,3.05763,3270.5,3268.0,0.03059219]
[1736948230033,3.05782,3270.4,3269.1,3.05891]
[1736948230320,1.6236,3270.6,3268.1,0.03059207]
[1736948230321,1.6236,3270.6,3268.3,3.05969]
[1736948230485,0.5091693,3270.5,3269.4,3.05864]
[1736948230826,3.05797,3270.2,3268.5,3.0595]
[1736948231112,3.0,3269.7,3267.7,0.306035]
[1736948231314,3.0,3269.7,3267.2,1.6543]
[1736948231315,3.0,3269.7,3267.3,0.03059868]
[1736948231624,1.6236,3270.0,3269.1,3.05888]
[1736948231917,1.6236,3270.0,3268.2,3.09036802]
[1736948232117,1.6236,3270.0,3267.5,3.06041]
[1736948232333,3.05852,3269.6,3267.4,1.6543]
[1736948232473,0.605852,3269.5,3267.5,0.16543]
[1736948232672,1.6236,3269.6,3267.6,0.03059901]
[1736948232872,1.6236,3269.6,3268.2,3.05969]
[1736948233175,4.6236,3269.2,3267.8,3.06015]
[1736948233414,4.6236,3269.2,3267.5,0.16543]
[1736948233415,1.6236,3269.2,3267.9,0.03060192]
[1736948233711,1.6236,3269.8,3268.2,5.73841186]
[1736948233869,1.6236,3271.1,3268.6,0.55]
[1736948234206,1.6236,3271.1,3268.3,3.76985705]
[1736948234207,4.68174,3270.0,3268.3,0.73927119]
[1736948234365,4.68174,3270.0,3267.5,3.22585]
[1736948234366,1.6236,3270.0,3267.5,1.81973]
[1736948234572,3.05865,3269.5,3268.1,3.05979]
[1736948234777,3.05918,3268.9,3267.5,3.22586]
[1736948235069,1.6236,3269.0,3267.6,0.03060212]
[1736948235299,1.6236,3269.0,3266.8,0.03060003]
[1736948235497,1.6236,3269.0,3267.6,3.06028]
[1736948235706,1.6236,3269.0,3267.8,3.06016]
[1736948235968,1.6236,3269.0,3268.2,3.05976]
[1736948236174,0.34643848,3269.0,3268.4,3.05951]
[1736948236374,0.34643848,3269.0,3268.1,3.05979]
[1736948236610,3.40549848,3269.0,3267.2,3.06072]
[1736948236837,3.40551848,3269.0,3267.0,3.06091]
[1736948237036,0.34643848,3269.0,3267.1,3.06081]
[1736948237238,0.34643848,3269.0,3266.7,1.6543]
[1736948237239,0.34643848,3269.0,3268.3,3.05968]
[1736948237401,0.34643848,3269.0,3267.0,0.03059528]
[1736948237821,0.34643848,3269.0,3267.9,3.06006]
[1736948238025,0.34643848,3269.0,3267.3,0.03059734]
[1736948238231,0.34643848,3269.0,3268.5,3.05948]
[1736948238459,0.34643848,3269.0,3268.2,0.03059438]
[1736948238739,0.15163078,3270.7,3269.1,3.05891]
[1736948239062,1.6236,3270.4,3268.0,1.6543]
[1736948239251,3.05875,3269.3,3267.4,3.06045]
[1736948239538,3.05875,3269.3,3267.5,3.366475]
[1736948239539,0.70514562,3269.2,3267.5,3.366475]
[1736948239698,3.05913,3269.0,3266.9,3.77888355]
[1736948239899,3.05926,3268.8,3266.9,0.71793355]
[1736948240103,4.6236,3269.0,3266.9,0.68733119]
[1736948240401,1.01211754,3269.2,3266.9,3.06091]
[1736948240402,4.6236,3268.7,3266.9,3.06091]
[1736948240605,3.0,3268.4,3265.9,0.03060775]
[1736948240805,1.6236,3267.6,3266.5,3.06136]
[1736948241113,1.6236,3267.6,3265.8,0.03061087]
[1736948241313,1.6236,3267.6,3267.0,3.06086]
[1736948241629,1.6236,3267.6,3267.2,3.06064]
[1736948241840,0.30697192,3268.3,3267.0,0.33669096]
[1736948241841,1.6236,3268.2,3267.0,0.33669096]
[1736948242154,4.6236,3267.7,3265.0,3.99270624]
[1736948242307,4.6236,3267.7,3264.9,4.71712]
[1736948242308,3.0,3267.7,3264.9,1.6543]
[1736948242510,1.6236,3266.3,3264.9,1.6543]
[1736948242710,1.6236,3266.3,3264.9,0.49124786]
[1736948242711,3.06183,3266.1,3264.9,0.49124786]
[1736948242933,4.6852,3266.3,3265.0,3.06278]
[1736948243139,1.6236,3266.3,3265.4,3.0624]
[1736948243446,1.6236,3266.9,3265.5,0.03062402]
[1736948243646,0.28357372,3266.2,3265.9,3.06186]
[1736948243832,0.28357372,3266.2,3265.4,0.0273652]
[1736948244216,0.61809009,3266.2,3265.4,0.0273652]
[1736948244447,3.06205,3265.8,3265.4,0.0273652]
[1736948244673,3.99270624,3265.8,3265.4,0.0273652]
[1736948244886,3.06231,3265.5,3265.4,0.0273652]
[1736948245560,4.71031,3265.5,3265.4,0.0273652]
[1736948245760,1.93157372,3265.5,3265.4,0.0273652]
[1736948246171,0.28357372,3265.5,3265.4,3.0897752]
[1736948246397,0.28357372,3265.5,3265.4,3.39875272]
[1736948246811,3.72e-06,3265.5,3265.4,3.39875272]
[1736948247027,3.72e-06,3265.5,3265.4,0.0273652]
[1736948247363,1.648,3266.4,3265.4,0.0273652]
[1736948247893,1.648,3266.4,3265.5,0.03061995]
[1736948248100,1.648,3267.0,3265.5,0.03061995]
[1736948248302,1.648,3267.0,3265.6,3.06222]
[1736948248506,1.648,3267.0,3266.2,3.06164]
[1736948248825,3.99270624,3266.9,3265.6,0.0273652]
[1736948249123,1.648,3266.0,3265.6,0.0273652]
[1736948250215,4.70987,3266.0,3265.6,0.0273652]
[1736948250448,1.648,3266.0,3265.6,0.0273652]
[1736948250947,1.648,3266.6,3265.6,0.0273652]
[1736948251423,4.648,3266.6,3265.6,0.0273652]
[1736948251576,3.06204,3265.8,3265.6,0.0273652]
[1736948251776,7.05436624,3266.2,3265.6,0.0273652]
[1736948251777,3.99270624,3266.2,3265.6,0.0273652]
[1736948252247,3.06191,3266.0,3265.6,0.0273652]
[1736948252382,1.648,3266.6,3265.6,3.0895852]
[1736948252583,1.648,3266.6,3265.6,0.33632372]
[1736948252784,0.25,3268.6,3265.6,0.33632372]
[1736948252785,1.648,3267.6,3265.8,3.06203]
[1736948253048,1.648,3267.6,3265.9,0.03061163]
[1736948253180,1.648,3267.6,3267.2,3.06069]
[1736948253383,1.648,3267.6,3266.4,3.06143]
[1736948253583,3.05967,3268.4,3267.2,0.0273652]
[1736948253584,1.648,3268.4,3267.2,0.0273652]
[1736948254018,0.85113829,3268.9,3268.2,3.05977]
[1736948254219,0.85113829,3268.9,3268.6,3.05941]
[1736948254382,0.85113829,3268.9,3268.1,3.0598]
[1736948254602,0.57379378,3269.4,3268.1,0.3333452]
[1736948254931,3.90821829,3271.1,3268.1,0.3333452]
[1736948254932,1.652,3270.1,3269.0,3.059]
[1736948255144,1.652,3270.1,3268.2,0.03059405]
[1736948255430,1.652,3270.1,3268.8,3.05922]
[1736948255599,1.652,3270.1,3268.6,1.5292]
[1736948255805,1.652,3271.0,3269.0,3.05895]
[1736948256001,1.652,3271.0,3270.1,3.05797]
[1736948256247,1.652,3271.0,3269.3,3.03058094]
[1736948256584,1.652,3271.0,3269.6,3.05847]
[1736948256784,1.652,3272.0,3270.7,3.05742]
[1736948257039,1.80987806,3272.0,3270.9,3.05723]
[1736948257246,1.652,3272.0,3270.6,3.05754]
[1736948257449,0.57379378,3272.1,3271.4,3.05676]
[1736948257605,1.652,3272.5,3270.7,0.03057055]
[1736948257936,1.652,3272.5,3270.1,3.08854716]
[1736948258135,1.652,3272.5,3270.4,3.05764]
[1736948258287,1.652,3272.5,3270.7,3.0]
[1736948258491,1.652,3273.3,3271.8,3.05634]
[1736948258730,1.652,3273.3,3271.0,3.0]
[1736948258731,1.652,3273.3,3271.1,0.03056419]
[1736948258940,1.652,3273.3,3271.7,3.05647]
[1736948259188,1.652,3273.3,3271.3,3.0]
[1736948259189,1.652,3273.3,3272.7,3.05551]
[1736948259424,1.652,3273.3,3271.8,1.5292]
[1736948259750,0.005,3273.4,3271.9,0.15292]
[1736948260036,0.005,3273.4,3272.2,3.05604]
[1736948260217,0.005,3273.4,3272.3,0.030553]
[1736948260417,0.005,3273.4,3272.9,3.05532]
[1736948260619,0.005,3273.4,3273.2,3.0551]
[1736948260953,0.005,3273.4,3272.8,0.03054973]
[1736948261233,0.005,3273.4,3272.6,3.05565]
[1736948261387,0.005,3273.4,3272.8,3.05547]
[1736948261585,0.005,3273.4,3272.9,0.03055003]
[1736948261935,0.005,3273.4,3272.7,3.05554]
[1736948262238,0.005,3273.4,3272.0,0.03055003]
[1736948262529,0.005,3273.4,3271.6,3.05652]
[1736948262736,3.05551,3272.8,3271.3,4.58603]
[1736948263029,1.652,3272.3,3270.7,1.5292]
[1736948263232,1.652,3272.3,3270.8,3.08791642]
[1736948263418,1.652,3272.3,3270.8,0.03056642]
[1736948263621,1.652,3272.3,3271.1,3.05703]
[1736948263791,1.652,3272.3,3270.8,0.03056642]
[1736948263992,3.05628,3272.0,3270.8,0.03056642]
[1736948264352,4.8172,3272.3,3270.0,1.5292]
[1736948264504,1.8172,3272.3,3270.2,3.05791]
[1736948264692,1.652,3272.3,3270.3,0.03056686]
[1736948264889,3.05514,3273.2,3270.8,3.0]
[1736948265202,1.652,3273.3,3270.9,0.03055987]
[1736948265603,1.652,3273.3,3271.2,3.05691]
[1736948265933,3.05543,3272.9,3271.0,3.05716]
[1736948266134,0.305543,3272.8,3270.6,1.5292]
[1736948266337,1.652,3273.3,3271.4,3.05675]
[1736948266506,1.652,3273.3,3271.5,0.03056148]
[1736948266689,1.652,3273.3,3270.8,3.0]
[1736948266690,3.05531,3273.0,3271.0,3.05716]
[1736948267033,1.652,3273.3,3272.1,3.05612]
[1736948267218,1.80843599,3273.3,3272.2,0.03055848]
[1736948267418,1.80843599,3273.3,3272.1,3.05613]
[1736948267592,1.98977959,3273.3,3271.8,3.05642]
[1736948267793,1.98977959,3273.3,3271.8,3.05635]
[1736948268023,3.05558,3272.7,3271.3,3.05686]
[1736948268189,1.98977959,3273.3,3270.9,0.03056297]
[1736948268393,1.98977959,3273.3,3271.3,0.55]
[1736948268616,1.98977959,3273.3,3271.2,3.05698]
[1736948268617,1.80843599,3273.3,3272.5,3.05571]
[1736948268821,1.80843599,3273.3,3272.1,0.03055501]
[1736948269134,0.005,3273.4,3272.1,1.5292]
[1736948269335,0.005,3273.4,3272.7,3.05554]
[1736948269633,0.15519576,3273.4,3272.3,3.05594]
[1736948269937,0.005,3273.4,3272.3,3.05594]
[1736948270239,0.005,3273.4,3272.4,0.03055658]
[1736948270391,0.005,3273.4,3272.4,3.05585]
[1736948270626,0.005,3273.4,3273.3,3.05502]
[1736948271636,0.005,3273.4,3273.1,0.03054754]
[1736948271971,0.005,3273.4,3271.9,1.6424]
[1736948272182,0.005,3273.4,3272.1,3.05614]
[1736948272469,1.5126,3273.8,3272.8,3.05545]
[1736948272771,1.5126,3273.8,3273.3,3.05499]
[1736948272975,1.5126,3273.8,3272.5,3.05576]
[1736948272976,1.5126,3273.8,3272.5,6.08630936]
[1736948273278,1.5126,3274.5,3272.8,6.11096]
[1736948273473,1.5126,3274.5,3273.3,3.05498]
[1736948273646,1.5126,3274.5,3272.6,0.60863094]
[1736948273989,1.5126,3274.5,3272.5,1.6424]
[1736948274131,3.05408,3274.4,3273.0,3.0552]
[1736948274371,1.5126,3274.5,3273.5,3.0548]
[1736948274582,1.5126,3274.5,3273.1,0.03054754]
[1736948274793,1.5126,3274.5,3273.4,3.0549]
[1736948275085,3.05399,3274.4,3272.6,3.05567]
[1736948275227,0.456659,3274.4,3273.2,3.0551]
[1736948275427,3.05418,3274.2,3273.1,3.05519]
[1736948275675,3.05415,3274.3,3273.1,3.05519]
[1736948275877,3.510709,3274.4,3273.2,3.0551]
[1736948276189,1.5126,3274.5,3273.4,3.05492]
[1736948276476,1.5126,3274.5,3273.0,3.0553]
[1736948276684,1.5126,3274.5,3273.4,3.0549]
[1736948276991,1.5126,3274.5,3271.6,1.6424]
[1736948277130,1.5126,3274.5,3272.9,3.05534]
[1736948277469,3.05412,3274.3,3272.2,3.05604]
[1736948277669,2.76535715,3274.5,3273.4,3.0549]
[1736948277670,1.5126,3274.5,3273.4,3.0549]
[1736948277881,0.23753495,3274.5,3273.1,0.03054838]
[1736948278179,0.23753495,3274.5,3271.9,0.03054738]
[1736948278397,3.05482,3273.6,3271.9,3.05625]
[1736948278549,4.96122151,3274.7,3272.0,0.305625]
[1736948278734,3.05396,3274.5,3273.3,3.05497]
[1736948279384,4.96122151,3275.3,3272.7,3.05558]
[1736948279385,3.05329,3275.2,3272.7,3.05558]
[1736948279529,4.96122151,3274.7,3271.9,1.67294679]
[1736948279729,0.49612215,3274.6,3273.2,3.0551]
[1736948279975,3.05412,3274.3,3272.2,3.05604]
[1736948280182,0.49612215,3274.6,3272.8,3.05543]
[1736948280330,0.55,3274.4,3272.0,0.16729468]
[1736948280530,3.49612215,3274.6,3272.1,0.03055568]
[1736948280778,1.5126,3274.5,3272.1,0.52021072]
[1736948280975,1.5126,3274.5,3273.2,3.05503]
[1736948281160,1.5126,3274.5,3272.1,0.03055568]
[1736948281161,1.5126,3274.5,3272.8,3.05545]
[1736948281480,1.5126,3274.5,3273.6,3.05469]
[1736948281774,1.5126,3274.5,3273.3,3.05493]
[1736948282075,1.5126,3274.5,3273.1,0.03054783]
[1736948282277,1.5126,3274.5,3273.2,0.16729478]
[1736948282477,1.5126,3274.5,3273.8,3.05455]
[1736948282679,3.05319,3275.3,3273.3,0.03054569]
[1736948282847,1.5126,3275.2,3273.3,0.03054569]
[1736948283048,3.05382,3274.6,3273.2,0.16729478]
[1736948283265,1.5126,3275.2,3273.4,3.05491]
[1736948283266,3.05396,3274.5,3273.4,3.05491]
[1736948283646,3.98055331,3275.0,3273.2,0.16729478]
[1736948283848,1.5126,3275.2,3273.3,0.03054508]
[1736948284086,1.5126,3275.2,3274.4,3.0539]
[1736948284385,1.5126,3276.0,3274.6,3.0538]
[1736948284687,3.98055331,3277.4,3274.5,0.03053634]
[1736948284688,1.5126,3277.2,3274.7,3.0842397]
[1736948284886,1.5126,3277.2,3275.6,3.05278]
[1736948285041,3.98055331,3276.9,3275.0,0.030527]
[1736948285236,4.56492,3276.2,3275.1,3.05326]
[1736948285437,0.456492,3276.1,3274.5,3.22117363]
[1736948285638,1.5126,3276.2,3275.1,3.05325]
[1736948285852,1.5126,3276.2,3275.5,3.05295]
[1736948286067,1.5126,3276.2,3274.5,3.25170294]
[1736948286266,1.5126,3276.2,3274.5,0.19782294]
[1736948286471,1.5126,3276.2,3274.5,0.03052931]
[1736948286778,1.5126,3276.2,3274.6,0.28358898]
[1736948286937,1.5126,3276.2,3274.7,3.08423858]
[1736948287138,3.05158,3277.0,3274.7,0.03052858]
[1736948287389,1.5355,3277.0,3274.7,0.03052858]
[1736948287563,0.15355,3276.9,3274.7,0.03052858]
[1736948287770,3.05175,3276.8,3274.8,0.28358898]
[1736948287968,4.13410331,3276.9,3275.0,3.05343]
[1736948287969,3.0519,3276.7,3275.0,3.05343]
[1736948288278,3.05221,3276.4,3274.9,3.05352]
[1736948288484,3.55,3276.8,3274.8,0.28358898]
[1736948288671,3.0523,3276.3,3274.8,0.28358898]
[1736948288867,3.98055331,3276.4,3274.8,0.28358898]
[1736948289067,3.05278,3275.7,3274.8,0.28358898]
[1736948289274,4.58893,3275.0,3274.9,0.28358898]
[1736948289478,3.05336,3275.1,3274.9,0.28358898]
[1736948289680,3.05343,3275.0,3274.9,0.28358898]
[1736948290402,1.5355,3275.6,3275.0,3.05338]
[1736948290561,1.5355,3276.6,3275.0,0.03053309]
[1736948290765,1.5355,3276.3,3273.9,3.05446]
[1736948290965,1.5355,3276.3,3274.5,3.05381]
[1736948290966,3.05276,3275.8,3274.5,3.05381]
[1736948291195,0.55160533,3276.2,3273.9,0.458976]
[1736948291506,0.55160533,3276.2,3274.7,3.05369]
[1736948291507,3.0525,3276.0,3274.7,3.05369]
[1736948291800,1.5355,3276.3,3274.8,0.03053499]
[1736948291952,1.5355,3276.3,3275.2,3.05321]
[1736948292153,1.5355,3276.3,3274.6,3.0]
[1736948292373,1.5355,3276.3,3274.0,0.0305308]
[1736948292589,1.5355,3276.3,3274.6,3.05378]
[1736948292855,1.5355,3276.3,3275.5,3.05288]
[1736948293196,1.5355,3276.3,3274.2,3.05418]
[1736948293401,1.5355,3276.3,3274.4,3.98055331]
[1736948293715,1.5355,3276.3,3275.4,3.05304]
[1736948293910,1.68905,3276.3,3275.2,3.05316]
[1736948294285,1.5355,3276.3,3275.3,0.03052929]
[1736948294490,1.5355,3276.3,3274.9,1.5353]
[1736948294817,1.5355,3276.3,3274.6,0.03052705]
[1736948294818,1.5355,3276.3,3274.6,3.05375]
[1736948295133,1.5355,3276.3,3274.4,1.5353]
[1736948295134,1.5355,3275.7,3274.4,3.0539]
[1736948295276,1.5355,3275.7,3273.6,3.05464]
[1736948295586,1.5355,3274.6,3273.2,1.5353]
[1736948295774,1.5355,3274.6,3273.7,0.28377297]
[1736948296414,1.5355,3274.6,3273.8,0.03054292]
[1736948296628,1.5355,3274.6,3273.7,0.28377297]
[1736948297174,3.0539,3274.5,3273.8,0.28377297]
[1736948297402,0.45894,3274.4,3273.8,0.28377297]
[1736948297607,1.5355,3274.6,3273.8,0.28377297]
[1736948298074,1.5355,3274.6,3274.4,3.05396]
[1736948298272,1.5355,3275.5,3274.0,0.03053979]
[1736948298508,1.5355,3275.5,3274.4,3.05391]
[1736948298713,1.5355,3275.5,3274.0,3.05436]
[1736948298885,1.5355,3275.5,3274.0,3.57220836]
[1736948299088,1.5355,3275.5,3273.9,0.28377297]
[1736948299089,3.05308,3275.4,3273.9,0.28377297]
[1736948299416,1.5355,3275.5,3274.1,3.05427]
[1736948299722,3.0533,3275.2,3274.0,3.33812297]
[1736948299919,1.5355,3275.5,3274.0,0.28377297]
[1736948300120,3.05325,3275.2,3274.0,0.28377297]
[1736948300288,0.15355,3275.4,3274.1,3.05426]
[1736948300490,0.15355,3275.4,3274.0,0.28377297]
[1736948300491,0.15355,3275.4,3274.2,3.05408]
[1736948300729,0.15355,3275.4,3274.0,0.28377297]
[1736948301185,1.5355,3275.5,3274.1,0.28377297]
[1736948301387,1.5355,3275.5,3274.8,3.0536]
[1736948301569,1.5355,3275.5,3274.1,0.31431194]
[1736948301570,1.5355,3275.5,3274.9,0.03053438]
[1736948301775,1.5355,3275.5,3274.8,3.05358]
[1736948302028,3.05188,3276.7,3275.0,3.05343]
[1736948302233,3.05188,3276.7,3275.2,3.05324]
[1736948302495,3.05188,3276.7,3275.1,0.33892487]
[1736948302496,3.97685156,3276.6,3275.1,3.05332]
[1736948302699,3.97685156,3276.6,3275.0,3.05337]
[1736948303021,0.55,3276.5,3274.9,0.28377297]
[1736948303218,1.5355,3276.4,3274.9,0.28377297]
[1736948303541,3.05267,3275.9,3275.0,0.28377297]
[1736948303846,3.50581,3276.3,3275.0,0.28377297]
[1736948304049,1.5355,3276.4,3275.0,0.28377297]
[1736948304400,3.05301,3275.5,3275.0,0.28377297]
[1736948304615,1.5355,3275.4,3275.0,0.28377297]
[1736948304850,3.05212,3276.5,3275.2,3.05322]
[1736948305159,3.05231,3276.2,3275.1,3.33707297]
[1736948305360,3.05189,3276.7,3275.1,3.33707297]
[1736948305361,3.05203,3276.5,3275.1,0.28377297]
[1736948305561,1.5355,3275.2,3275.1,0.28377297]
[1736948306269,1.5355,3276.1,3274.8,3.05362]
[1736948306418,3.05278,3275.7,3274.5,3.05385]
[1736948306614,7.27666338,3276.8,3274.0,0.28377297]
[1736948306615,3.05147,3277.1,3274.6,0.03053438]
[1736948306821,3.05205,3276.5,3275.4,3.053]
[1736948307023,3.05205,3276.5,3274.7,3.05371]
[1736948307024,3.357265,3276.5,3274.8,6.10724]
[1736948307226,3.357265,3276.5,3274.3,3.97488338]
[1736948307227,0.305205,3276.5,3274.3,3.97488338]
[1736948307431,1.5355,3277.0,3275.3,3.05306]
[1736948307665,3.05253,3276.0,3274.8,3.05353]
[1736948307843,1.5355,3275.9,3274.9,0.28377297]
[1736948308447,3.05278,3275.8,3274.9,0.28377297]
[1736948308628,3.05299,3275.5,3274.9,0.28377297]
[1736948308833,1.5355,3275.9,3274.9,0.28377297]
[1736948309023,1.68905,3275.9,3275.0,0.28377297]
[1736948309221,4.74166,3275.9,3275.0,0.28377297]
[1736948309431,4.74168,3275.9,3275.0,0.28377297]
[1736948309633,1.5355,3275.9,3275.0,3.36767617]
[1736948309853,1.5355,3275.9,3275.0,0.28377297]
[1736948310049,3.97488338,3277.0,3275.0,0.28377297]
[1736948310050,1.5355,3276.4,3275.2,3.05324]
[1736948310252,1.5355,3276.4,3275.0,0.28377297]
[1736948310253,4.5355,3276.4,3275.0,0.28377297]
[1736948310451,4.5355,3276.4,3273.3,1.74281182]
[1736948310452,1.5355,3276.1,3275.1,0.28377297]
[1736948310677,3.05324,3275.2,3275.1,0.28377297]
[1736948310824,3.05306,3275.4,3275.1,0.28377297]
[1736948311025,3.45355,3276.0,3275.1,0.28377297]
[1736948311223,3.05263,3275.9,3275.1,0.28377297]
[1736948311422,1.69282018,3276.1,3275.1,0.28377297]
[1736948311619,1.69282018,3276.1,3274.7,1.5353]
[1736948312341,1.69282018,3276.1,3275.1,3.05331]
[1736948312537,1.69282018,3276.1,3274.0,1.5353]
[1736948312760,0.16928202,3276.0,3274.1,3.20777]
[1736948312964,0.16928202,3276.0,3275.0,3.05342]
[1736948313141,4.74523018,3276.1,3274.2,3.05418]
[1736948313142,1.69282018,3276.1,3275.3,3.05312]
[1736948313335,1.69282018,3276.1,3274.2,3.05418]
[1736948313569,3.05277,3275.8,3274.6,3.05376]
[1736948313723,3.05304,3275.5,3274.3,3.054]
[1736948313929,8.72018356,3276.1,3274.6,3.05379]
[1736948314271,8.72018356,3276.1,3274.5,3.05387]
[1736948314272,3.05281,3275.7,3274.5,3.05387]
[1736948314423,3.05299,3275.5,3274.1,0.43874586]
[1736948314625,3.05275,3275.8,3274.2,0.03053807]
[1736948314872,0.87201836,3276.0,3274.2,3.05418]
[1736948315075,0.87201836,3276.0,3273.4,1.6389]
[1736948315076,1.6161,3274.8,3273.4,1.6389]
[1736948315367,1.6161,3274.8,3273.5,3.05481]
[1736948315536,1.6161,3274.8,3273.3,3.05502]
[1736948315742,1.6161,3274.8,3273.5,0.28543197]
[1736948315954,1.6161,3274.8,3273.5,0.31597217]
[1736948316159,1.6161,3274.8,3273.5,0.28543197]
[1736948316160,0.16161,3274.7,3273.5,0.28543197]
[1736948316543,3.05413,3274.3,3273.5,0.28543197]
[1736948316741,0.16161,3274.7,3272.9,0.28543197]
[1736948316944,3.05409,3274.3,3273.1,3.05512]
[1736948317141,3.05409,3274.3,3273.2,3.05508]
[1736948317343,1.6161,3274.1,3272.9,0.28543197]
[1736948317543,5.59098338,3274.1,3272.9,0.28543197]
[1736948317761,3.05475,3273.6,3272.9,0.28543197]
[1736948317946,1.6161,3274.1,3272.9,0.28543197]
[1736948318157,1.6161,3274.1,3272.4,3.05579]
[1736948318359,1.8082509,3274.1,3272.5,0.33613056]
[1736948318679,1.8082509,3274.1,3273.1,3.05519]
[1736948318875,1.6161,3274.1,3273.1,3.05519]
[1736948319082,3.05455,3273.8,3272.8,3.05541]
[1736948319386,1.6161,3274.1,3272.8,3.05541]
[1736948319625,5.59098338,3274.1,3272.5,0.03055255]
[1736948319892,3.05447,3273.9,3272.0,0.16729468]
[1736948320101,3.97488338,3273.6,3271.7,1.6389]
[1736948320308,1.6161,3273.0,3271.2,1.6389]
[1736948320600,1.6161,3273.0,3271.2,3.0569]
[1736948320806,3.05558,3272.8,3271.5,3.0566]
[1736948321008,1.6161,3273.0,3271.1,3.34168917]
[1736948321009,3.05567,3272.7,3271.1,3.34168917]
[1736948321298,1.6161,3273.0,3272.4,3.0558]
[1736948321451,1.6161,3273.0,3272.5,3.05571]
[1736948321653,1.6161,3273.0,3272.3,3.05594]
[1736948321852,1.6161,3273.0,3272.1,3.05604]
[1736948322106,1.6161,3273.0,3272.2,0.03055818]
[1736948322279,3.52118034,3273.6,3272.6,3.05564]
[1736948322591,3.52118034,3273.6,3272.5,3.05568]
[1736948322795,3.52118034,3273.6,3272.2,0.03055818]
[1736948322796,1.6161,3273.6,3272.6,3.05567]
[1736948323095,1.6161,3273.6,3272.7,0.03055484]
[1736948323263,1.90508034,3274.3,3272.7,0.58055484]
[1736948323490,1.90508034,3274.3,3274.2,3.05418]
[1736948323669,3.4e-07,3274.3,3274.2,3.05418]
[1736948323871,3.4e-07,3275.3,3273.9,4.69327]
[1736948324076,3.4e-07,3275.3,3274.0,0.469327]
[1736948324284,3.4e-07,3275.3,3274.1,0.03053624]
[1736948324696,3.4e-07,3275.3,3274.0,0.03053158]
[1736948325006,3.4e-07,3275.3,3274.1,0.03053459]
[1736948325211,3.05276,3275.8,3274.7,3.05368]
[1736948325384,3.05312,3275.4,3274.3,3.05408]
[1736948325600,0.305312,3275.3,3274.3,3.054]
[1736948325934,3.97488338,3275.1,3273.6,3.33883361]
[1736948326224,3.05408,3274.4,3273.6,0.28410361]
[1736948326527,3.97488338,3274.6,3273.6,0.28410361]
[1736948326674,4.6161,3274.5,3273.6,0.28410361]
[1736948327017,4.6161,3274.5,3273.0,1.16187455]
[1736948327018,3.0,3273.6,3273.0,1.16187455]
[1736948327175,3.0,3273.6,3271.9,4.06656092]
[1736948327176,3.97488338,3273.1,3271.4,1.16187455]
[1736948327379,1.6161,3272.8,3271.4,1.16187455]
[1736948327633,1.6161,3272.8,3271.4,4.21858455]
[1736948327923,3.97488338,3272.6,3271.4,1.16187455]
[1736948328216,1.6161,3272.4,3270.6,3.0575]
[1736948328426,3.0562,3272.1,3271.0,3.05707]
[1736948328572,1.6161,3272.4,3271.2,3.05698]
[1736948328782,1.6161,3272.4,3271.3,0.33931958]
[1736948328975,3.05502,3273.4,3272.0,3.05619]
[1736948328976,3.05514,3273.2,3272.0,3.05619]
[1736948329185,1.6161,3273.4,3272.0,3.05619]
[1736948329186,3.05521,3273.1,3272.0,3.05619]
[1736948329482,1.6161,3273.4,3272.1,0.03055976]
[1736948329677,1.6161,3273.4,3271.8,4.0054384]
[1736948329900,1.6161,3273.4,3272.0,1.5011]
[1736948330083,2.50098507,3273.7,3272.1,0.23566138]
[1736948330403,1.5026,3274.0,3272.2,3.05604]
[1736948330571,1.5026,3274.0,3272.5,3.05571]
[1736948330773,1.5026,3274.0,3272.6,0.03055135]
[1736948330987,1.5026,3274.0,3272.3,3.0]
[1736948331193,1.5026,3274.0,3272.1,0.20511]
[1736948331405,1.5026,3273.1,3271.5,1.5011]
[1736948331822,1.5026,3273.1,3271.6,3.05659]
[1736948332025,3.05607,3272.2,3270.7,3.05744]
[1736948332288,3.05607,3272.2,3270.1,1.16187455]
[1736948332289,5.47748338,3272.1,3270.4,1.5011]
[1736948332493,4.55878,3272.1,3270.5,0.03057343]
[1736948332790,1.5026,3272.1,3271.0,3.05711]
[1736948332990,1.5026,3272.1,3270.8,3.08791784]
[1736948333218,1.5026,3272.1,3270.8,0.03056784]
[1736948333536,3.0568,3271.4,3270.1,3.05791]
[1736948333721,1.5026,3271.3,3269.3,1.224981]